lending/lending_fUSD_20240928
["ID","MTS","AMOUNT","RATE_DAILY","PERIOD"]
[339392765,1727555433042,-1000.0,0.0001288,3]
[339392766,1727555433051,-1000.0,0.0001288,2]
[339392767,1727555433061,-2234.44638301,0.00012889,2]
[339392768,1727555433070,-151.93,0.0001289,2]
[339392769,1727555433079,-150.0,0.00012892,2]
[339392770,1727555433088,-1557.70054933,0.00012899,2]
[339392771,1727555433098,-399.76,0.00012899,2]
[339392772,1727555433107,-600.0,0.000129,2]
[339392773,1727555433116,-80392.40932918,0.000129,2]
[339392774,1727555433128,-8033.04087757,0.000129,2]
[339392775,1727555433139,-3094.63215291,0.000129,2]
[339392776,1727555433150,-1245.568807,0.000129,2]
[339392777,1727555433161,-119605.91192812,0.000129,2]
[339392778,1727555433170,-375880.48883619,0.000129,2]
[339392779,1727555433181,-896.13144154,0.000129,2]
[339392780,1727555433192,-2763.18092288,0.000129,2]
[339392781,1727555433203,-63031.35909185,0.000129,2]
[339392782,1727555433215,-2948.80265338,0.000129,2]
[339392783,1727555433225,-3753.76120749,0.000129,2]
[339392784,1727555433236,-10774.44975929,0.000129,2]
[339392787,1727555438503,-1127.75766231,0.00012622,2]
[339392788,1727555438514,-203.23409377,0.000128,2]
[339392789,1727555438523,-1106641.26179604,0.000129,2]
[339392790,1727555438558,-463.99900633,0.000129,2]
[339392791,1727555438569,-1333.72372209,0.000129,2]
[339392792,1727555438720,-999.99999999,0.000129,2]
[339392793,1727555438732,-25248.69888996,0.000129,2]
[339392794,1727555438744,-11216.25702667,0.000129,2]
[339392795,1727555438755,-12612.34474342,0.000129,2]
[339392797,1727555440470,-359.66807835,0.0001275,2]
[339392798,1727555440483,-5734.27812165,0.0001275,2]
[339392799,1727555440493,-539.0,0.000129,2]
[339392800,1727555440505,-56478.7384699,0.000129,2]
[339392801,1727555440535,-300.0,0.000129,2]
[339392802,1727555440546,-3207.57708483,0.000129,2]
[339392803,1727555440557,-2100.26359991,0.000129,2]
[339392833,1727555443374,-862.12443823,0.000129,2]
[339392834,1727555598293,200.0,0.00020593,120]
[339392835,1727555819328,265.59,9.868e-05,2]
[339392836,1727555905236,1050.0,0.00011,2]
[339392837,1727555922672,162.68,0.00010959,2]
[339392838,1727556369303,273.5,9.709e-05,2]
[339392839,1727556477450,173.8,0.00010959,2]
[339392840,1727556498349,749.49,0.00010959,2]
[339392846,1727556631475,-184.44822387,0.00011489,2]
[339392847,1727556631485,-248.5294,0.00011535,2]
[339392848,1727556631494,-163.95,0.00011573,2]
[339392849,1727556631504,-150.0,0.00011589,2]
[339392850,1727556631513,-9178.80723437,0.00011601,2]
[339392851,1727556631524,-740.97,0.00011601,2]
[339392852,1727556631535,-1449.67779497,0.00011601,2]
[339392853,1727556631545,-416.47,0.00011601,2]
[339392854,1727556631554,-300.0,0.00011609,2]
[339392855,1727556631564,-183.78,0.0001161,2]
[339392856,1727556631573,-1007.62,0.00011615,2]
[339392857,1727556631582,-406.54,0.00011635,2]
[339392858,1727556631591,-250.0,0.00011637,2]
[339392859,1727556631600,-250.0,0.00011669,2]
[339392860,1727556631609,-250.0,0.00011693,2]
[339392861,1727556631619,-243.5,0.00011749,2]
[339392862,1727556631628,-150.0,0.00011753,2]
[339392863,1727556631637,-168.06,0.00011815,2]
[339392864,1727556631646,-1000.0,0.00011854,2]
[339392865,1727556631655,-273.5,0.00011973,2]
[339392866,1727556631664,-192.24,0.00012206,2]
[339392867,1727556631673,-259.39848917,0.00012266,2]
[339392868,1727556631682,-176.264988,0.00012454,2]
[339392869,1727556631691,-1016.29852869,0.00012642,2]
[339392870,1727556631700,-1028.62029847,0.00012642,2]
[339392871,1727556631709,-300.0,0.00012699,2]
[339392872,1727556631718,-8265.25190193,0.000127,2]
[339392873,1727556631726,-180.0,0.00012778,2]
[339392874,1727556631735,-150.0,0.00012795,2]
[339392875,1727556631744,-500.0,0.00012796,2]
[339392876,1727556631753,-500.0,0.00012797,2]
[339392877,1727556631762,-150.0,0.00012799,2]
[339392878,1727556631771,-2979.5788,0.000128,2]
[339392879,1727556631780,-5821.5306,0.000128,2]
[339392880,1727556631789,-2981.3747,0.000128,2]
[339392881,1727556631798,-7240.8147,0.000128,2]
[339392882,1727556631808,-2864.4158,0.000128,2]
[339392884,1727556631817,-2500.0,0.000128,2]
[339392886,1727556631827,-1642.038483,0.000128,2]
[339392887,1727556631836,-764.7797,0.000128,2]
[339392888,1727556631845,-363.156,0.000128,2]
[339392889,1727556631854,-168.66286001,0.000128,2]
[339392890,1727556631863,-188.90231541,0.000128,2]
[339392891,1727556631872,-210.77847826,0.000128,2]
[339392892,1727556631881,-5675.25342846,0.000128,2]
[339392893,1727556631890,-211.86251791,0.000128,2]
[339392894,1727556631899,-1000.0,0.000128,2]
[339392895,1727556631908,-2720.04482154,0.000128,2]
[339392896,1727556631917,-233.50394716,0.000128,2]
[339392897,1727556631926,-2720.0448215,0.00012811,2]
[339392899,1727556631935,-233.50394712,0.00012814,2]
[339392900,1727556631944,-414.611,0.00012818,2]
[339392901,1727556631953,-2720.0448215,0.00012822,2]
[339392902,1727556631962,-233.50394712,0.00012829,2]
[339392903,1727556631972,-2720.0448215,0.00012833,2]
[339392904,1727556631981,-233.50394712,0.00012843,2]
[339392905,1727556631990,-2720.0448215,0.00012844,2]
[339392906,1727556631999,-5675.25342844,0.0001285,2]
[339392907,1727556632009,-211.8625179,0.0001285,2]
[339392908,1727556632018,-2720.0448215,0.00012856,2]
[339392909,1727556632031,-2720.0448215,0.00012867,2]
[339392910,1727556632040,-2000.0,0.00012876,2]
[339392911,1727556632050,-2720.0448215,0.00012878,2]
[339392912,1727556632059,-189.23522239,0.00012899,2]
[339392913,1727556632068,-1000.0,0.00012899,2]
[339392914,1727556632077,-500.0,0.00012899,2]
[339392915,1727556632086,-362.27,0.00012899,2]
[339392916,1727556632095,-541.0,0.000129,2]
[339392917,1727556632104,-75725.14515625,0.000129,2]
[339392918,1727556632118,-619.65174307,0.000129,2]
[339392919,1727556632134,-9867.46314013,0.000129,2]
[339392920,1727556632146,-712.02367317,0.000129,2]
[339392921,1727556632157,-603.91888408,0.000129,2]
[339392925,1727556637582,-352.2339743,0.000128,2]
[339392926,1727556637592,-233.50394712,0.00012857,2]
[339392927,1727556637601,-2720.0448215,0.00012889,2]
[339392928,1727556637611,-150.0,0.00012899,2]
[339392929,1727556637621,-15518.21823038,0.000129,2]
[339392930,1727556637631,-557.83413975,0.000129,2]
[339392931,1727556637642,-749.4970653,0.000129,2]
[339392932,1727556637695,-10427.07548237,0.000129,2]
[339392933,1727556637706,-7768.1384,0.000129,2]
[339392934,1727556637718,-7546.2938,0.000129,2]
[339392935,1727556637730,-17006.65070178,0.000129,2]
[339392936,1727556637743,-256.9894911,0.000129,2]
[339392937,1727556637754,-301.12664511,0.000129,2]
[339392938,1727556637784,-352.52727591,0.000129,2]
[339392939,1727556637795,-528.0058376,0.000129,2]
[339392940,1727556637861,-752.92921906,0.000129,2]
[339392941,1727556637872,-358.48667185,0.000129,2]
[339392955,1727556639574,-300.59930483,0.000129,2]
[339392956,1727556639634,-11953.20000001,0.000129,2]
[339392957,1727556639645,-8467.04682707,0.000129,2]
[339392958,1727556639657,-54126.41486008,0.000129,2]
[339392962,1727556642578,-233.50394712,0.00012871,2]
[339392963,1727556642587,-366.14605293,0.000129,2]
[339392964,1727556642598,-4330.59626476,0.000129,2]
[339392965,1727556642609,-827.19049739,0.000129,2]
[339392966,1727556642620,-715.43335499,0.000129,2]
[339392967,1727556642631,-1075.19585022,0.000129,2]
[339392968,1727556642643,-483.05719049,0.000129,2]
[339392969,1727556642654,-1700.6,0.000129,2]
[339392970,1727556642665,-5112.08878254,0.000129,2]
[339392971,1727556642674,-8078.07290123,0.000129,2]
[339392972,1727556642685,-427.149998,0.000129,2]
[339392973,1727556642697,-664228.64157393,0.000129,2]
[339392974,1727556642709,-717.9,0.000129,2]
[339392975,1727556642720,-6835.20451905,0.000129,2]
[339392976,1727556642734,-387.12562933,0.000129,2]
[339392977,1727556642745,-547.46957672,0.000129,2]
[339392978,1727556642756,-63286.99999999,0.000129,2]
[339392979,1727556642767,-760.21,0.000129,2]
[339392980,1727556642782,-6599.28687611,0.000129,2]
[339392983,1727556645598,-739.3446324,0.000129,2]
[339392984,1727556645653,-14880.0,0.000129,2]
[339392985,1727556645664,-1000.0,0.000129,2]
[339392986,1727556974144,294.53,9.72e-05,2]
[339392987,1727557096670,152.2,0.00010959,2]
[339392988,1727557202212,150.0,0.00010959,2]
[339392989,1727557202428,150.0,0.00010959,2]
[339392990,1727557202668,150.0,0.00010959,2]
[339392991,1727557202868,150.0,0.00010959,2]
[339392992,1727557203082,150.0,0.00010959,2]
[339392993,1727557203469,150.0,0.00010959,2]
[339392994,1727557203506,150.0,0.00010959,2]
[339392995,1727557203660,150.0,0.00010959,2]
[339392996,1727557203892,150.0,0.00010959,2]
[339392997,1727557204097,150.0,0.00010959,2]
[339392998,1727557204316,150.0,0.00010959,2]
[339392999,1727557204582,150.0,0.00010959,2]
[339393000,1727557204764,150.0,0.00010959,2]
[339393001,1727557205217,150.0,0.00010959,2]
[339393002,1727557205402,150.0,0.00010959,2]
[339393003,1727557205570,150.0,0.00010959,2]
[339393004,1727557205748,154.67203195,0.00010959,2]
[339393005,1727557391331,410.9818888,0.00011074,2]
[339393006,1727557459268,2275.09,0.00011101,2]
[339393007,1727557648036,170.34,0.00010959,2]
[339393008,1727557692300,2765.0,0.00019,120]
[339393009,1727557701157,888.64707406,0.00022,120]
[339393010,1727557707719,1050.0,0.00011,2]
[339393024,1727557831755,-250.0,0.00011151,2]
[339393025,1727557831765,-250.0,0.00011174,2]
[339393026,1727557831774,-681.26213134,0.00011174,2]
[339393027,1727557831785,-536.83568415,0.00011174,2]
[339393028,1727557831796,-1261.07218451,0.00011174,2]
[339393029,1727557831805,-250.0,0.00011198,2]
[339393030,1727557831815,-166.83,0.00011221,2]
[339393031,1727557831825,-1000.0,0.00011225,2]
[339393032,1727557831834,-200.0,0.00011322,2]
[339393033,1727557831843,-2000.0,0.00011327,2]
[339393034,1727557831852,-300.0,0.0001134,2]
[339393035,1727557831862,-5861.08,0.00011341,2]
[339393036,1727557831871,-450.0,0.00011358,2]
[339393037,1727557831880,-4345.02,0.00011358,2]
[339393038,1727557831889,-1087.43,0.00011363,2]
[339393039,1727557831899,-150.99,0.00011376,2]
[339393040,1727557831908,-217.75,0.00011384,2]
[339393041,1727557831917,-500.0,0.000114,2]
[339393042,1727557831926,-155.73,0.00011406,2]
[339393043,1727557831935,-499.99,0.0001142,2]
[339393044,1727557831945,-177.03,0.00011442,2]
[339393045,1727557831954,-150.0,0.00011589,2]
[339393046,1727557831964,-150.0,0.00011589,2]
[339393047,1727557831973,-150.0,0.00011589,2]
[339393048,1727557831983,-150.0,0.00011589,2]
[339393049,1727557831993,-150.0,0.00011589,2]
[339393050,1727557832002,-189.27,0.00011798,2]
[339393051,1727557832011,-187.27,0.00011808,2]
[339393052,1727557832020,-189.27,0.00011857,2]
[339393053,1727557832029,-294.53,0.00011984,2]
[339393054,1727557832038,-255.1122,0.00012229,2]
[339393055,1727557832047,-2626.88,0.00012329,2]
[339393056,1727557832057,-193.4,0.00012445,2]
[339393057,1727557832066,-150.0,0.00012454,2]
[339393058,1727557832075,-411.822757,0.00012454,2]
[339393059,1727557832084,-156.11362,0.00012454,2]
[339393060,1727557832093,-152.632682,0.00012454,2]
[339393061,1727557832103,-811.18549,0.00012454,2]
[339393062,1727557832112,-171.592816,0.00012454,2]
[339393063,1727557832122,-6243.2312,0.00012577,2]
[339393064,1727557832131,-3664.98216799,0.00012579,2]
[339393065,1727557832140,-411.822757,0.0001261,2]
[339393066,1727557832149,-811.18549,0.0001261,2]
[339393067,1727557832159,-3664.98216791,0.00012615,2]
[339393068,1727557832168,-1000.0,0.00012628,2]
[339393070,1727557832177,-3664.98216791,0.0001265,2]
[339393071,1727557832187,-480.2651,0.00012677,2]
[339393072,1727557832196,-1915.15,0.00012677,2]
[339393073,1727557832206,-4904.9535,0.00012677,2]
[339393074,1727557832215,-174.6118,0.00012677,2]
[339393075,1727557832225,-2786.01613891,0.00012677,2]
[339393076,1727557832239,-650.88918,0.00012677,2]
[339393077,1727557832250,-69105.87262194,0.00012677,2]
[339393078,1727557832261,-1092.85082834,0.00012677,2]
[339393080,1727557832272,-2437.99633404,0.00012677,2]
[339393082,1727557832283,-978.62989679,0.00012677,2]
[339393085,1727557832294,-686.70513767,0.00012677,2]
[339393087,1727557832305,-1132.38722525,0.00012677,2]
[339393089,1727557832317,-600.0,0.00012677,2]
[339393091,1727557832329,-6000.0,0.00012677,2]
[339393093,1727557832341,-11846.76503706,0.00012677,2]
[339393095,1727557832350,-9501.0269,0.00012677,2]
[339393097,1727557832359,-2450.3223,0.00012677,2]
[339393099,1727557832368,-288.44464696,0.00012679,2]
[339393101,1727557832378,-1000.0,0.0001268,2]
[339393103,1727557832387,-3664.98216791,0.00012686,2]
[339393105,1727557832397,-2916.7875,0.00012693,2]
[339393107,1727557832406,-308.69351848,0.00012693,2]
[339393109,1727557832415,-933.0,0.00012705,2]
[339393111,1727557832424,-288.44464696,0.00012711,2]
[339393113,1727557832434,-172.71481387,0.00012711,2]
[339393115,1727557832443,-150.0,0.0001272,2]
[339393117,1727557832452,-1086.316,0.0001272,2]
[339393119,1727557832461,-43680.0,0.00012722,2]
[339393120,1727557832471,-3664.98216791,0.00012722,2]
[339393122,1727557832480,-288.44464696,0.00012742,2]
[339393124,1727557832490,-308.69351848,0.00012746,2]
[339393126,1727557832499,-3664.98216791,0.00012757,2]
[339393128,1727557832508,-411.822757,0.00012766,2]
[339393130,1727557832517,-811.18549,0.00012766,2]
[339393132,1727557832526,-171.592816,0.00012766,2]
[339393134,1727557832538,-162.25,0.0001277,2]
[339393136,1727557832546,-288.44464696,0.00012774,2]
[339393138,1727557832556,-151756.88043952,0.00012777,2]
[339393140,1727557832566,-162.92436218,0.00012779,2]
[339393141,1727557832575,-500.0,0.00012779,2]
[339393144,1727557832585,-151756.88043952,0.0001278,2]
[339393145,1727557832594,-636.35143915,0.00012792,2]
[339393147,1727557832604,-199.52669593,0.00012792,2]
[339393149,1727557832613,-24233.36228105,0.00012793,2]
[339393151,1727557832626,-125226.26105943,0.00012793,2]
[339393153,1727557832637,-305.27036186,0.00012793,2]
[339393155,1727557832648,-1991.98673718,0.00012793,2]
[339393156,1727557832659,-3508.78453007,0.00012793,2]
[339393157,1727557832671,-3937.78607992,0.00012793,2]
[339393158,1727557832682,-2686.65209013,0.00012793,2]
[339393159,1727557832693,-8774.31523528,0.00012793,2]
[339393160,1727557832704,-549.00973517,0.00012793,2]
[339393161,1727557832716,-3603.53690901,0.00012793,2]
[339393162,1727557832728,-7211.0,0.00012793,2]
[339393163,1727557832740,-2497.50370162,0.00012793,2]
[339393164,1727557832752,-4221.79258543,0.00012793,2]
[339393165,1727557832763,-4700.0,0.00012793,2]
[339393166,1727557832779,-428.45648914,0.00012793,2]
[339393167,1727557832790,-711.01118688,0.00012793,2]
[339393168,1727557832802,-1827.91072361,0.00012793,2]
[339393172,1727557837788,-7819.7037796,0.00012793,2]
[339393174,1727557837799,-1111.15813919,0.00012793,2]
[339393176,1727557837810,-5340.98495427,0.00012793,2]
[339393178,1727557837820,-338.26352533,0.00012793,2]
[339393180,1727557837832,-6515.0,0.00012793,2]
[339393183,1727557837844,-400.0,0.00012793,2]
[339393184,1727557837854,-7958.54185658,0.00012793,2]
[339393185,1727557837903,-6470.20833297,0.00012793,2]
[339393186,1727557837913,-925.56170541,0.00012793,2]
[339393187,1727557838015,-70219.69887991,0.00012793,2]
[339393188,1727557838025,-3664.98216791,0.00012793,2]
[339393189,1727557838034,-150.0,0.00012795,2]
[339393190,1727557838043,-151756.88043952,0.00012797,2]
[339393191,1727557838052,-308.69351848,0.00012799,2]
[339393192,1727557838062,-2952.7526,0.000128,2]
[339393193,1727557838071,-1723.4823,0.000128,2]
[339393194,1727557838080,-15406.67,0.000128,2]
[339393195,1727557838091,-6768.1652,0.000128,2]
[339393196,1727557838101,-11500.2285,0.000128,2]
[339393197,1727557838110,-201.34185824,0.000128,2]
[339393198,1727557838120,-551.04152693,0.000128,2]
[339393199,1727557838129,-1215.0,0.000128,2]
[339393200,1727557838139,-5662.80590233,0.000128,2]
[339393202,1727557838148,-288.44464696,0.00012805,2]
[339393204,1727557838158,-3664.98216791,0.00012829,2]
[339393206,1727557838167,-392.809,0.0001283,2]
[339393208,1727557838176,-516.5994,0.00012835,2]
[339393210,1727557838185,-288.44464696,0.00012837,2]
[339393212,1727557838194,-551.04152692,0.0001285,2]
[339393214,1727557838203,-5662.80590232,0.0001285,2]
[339393216,1727557838213,-537.0,0.00012864,2]
[339393218,1727557838222,-3664.98216791,0.00012864,2]
[339393220,1727557838231,-288.44464696,0.00012868,2]
[339393222,1727557838240,-500.0,0.0001287,2]
[339393224,1727557838250,-177.03,0.00012872,2]
[339393226,1727557838259,-500.0,0.00012876,2]
[339393228,1727557838268,-2000.0,0.00012876,2]
[339393230,1727557838278,-150.0,0.00012877,2]
[339393232,1727557838287,-170.24,0.00012883,2]
[339393234,1727557838297,-421979.2686786,0.00012899,2]
[339393236,1727557838306,-1000.0,0.00012899,2]
[339393238,1727557838315,-502.72571637,0.00012899,2]
[339393240,1727557838324,-500.0,0.00012899,2]
[339393241,1727557838333,-500.0,0.00012899,2]
[339393243,1727557838342,-584.93823823,0.00012899,2]
[339393245,1727557838351,-500.0,0.00012899,2]
[339393247,1727557838360,-326.35,0.00012899,2]
[339393249,1727557838370,-500.0,0.00012899,2]
[339393251,1727557838380,-564.06520356,0.00012899,2]
[339393253,1727557838389,-1420.0,0.00012899,2]
[339393254,1727557838398,-150.486,0.00012899,2]
[339393255,1727557838408,-808.0,0.00012899,2]
[339393256,1727557838417,-561.512,0.00012899,2]
[339393257,1727557838426,-98966.75787507,0.000129,2]
[339393258,1727557838438,-6016.27157419,0.000129,2]
[339393259,1727557838449,-2644.17619719,0.000129,2]
[339393260,1727557838460,-318.0360341,0.000129,2]
[339393261,1727557838472,-462.45588772,0.000129,2]
[339393262,1727557838483,-461.27657119,0.000129,2]
[339393263,1727557838495,-729.66,0.000129,2]
[339393265,1727557839840,-1341.45000002,0.000129,2]
[339393266,1727557839851,-262.894995,0.000129,2]
[339393267,1727557840013,-436.05203261,0.000129,2]
[339393268,1727557840025,-1542.596995,0.000129,2]
[339393269,1727557840042,-322.20825632,0.00012692,2]
[339393270,1727557840051,-6242.61411618,0.000129,2]
[339393271,1727557840062,-1505.04594099,0.000129,2]
[339393272,1727557840073,-255.4974,0.000129,2]
[339393273,1727557840084,-302.2027,0.000129,2]
[339393274,1727557840095,-31238.89417484,0.000129,2]
[339393275,1727557840106,-5859.46811615,0.000129,2]
[339393276,1727557840117,-13316.1104248,0.000129,2]
[339393355,1727557842715,-388.43537505,0.000129,2]
[339393358,1727557842826,-603.62491081,0.000129,2]
[339393359,1727557842837,-211371.97607568,0.000129,2]
[339393360,1727557842882,-642.70249532,0.000129,2]
[339393361,1727557842893,-551.06242547,0.000129,2]
[339393362,1727557842941,-382.92113158,0.000129,2]
[339393363,1727557842953,-1109.25964547,0.000129,2]
[339393364,1727557842966,-175156.98969406,0.000129,2]
[339393365,1727557842975,-180.71,0.000129,2]
[339393366,1727557842984,-1327.11,0.000129,2]
[339393367,1727557842994,-306769.09470699,0.000129,2]
[339393370,1727557845775,-3208.80643389,0.000129,2]
[339393371,1727557845832,-519.53351917,0.000129,2]
[339393374,1727557856970,316.75,0.00010167,2]
[339393375,1727558457334,325.14,9.99e-05,2]
[339393376,1727558729104,36793.93430885,0.000101,2]
[339393377,1727558800884,162.68,0.00010959,2]
[339393383,1727558976923,331.9,9.888e-05,2]
[339393394,1727559031983,-217.75,0.00011792,2]
[339393395,1727559031994,-264.82236619,0.000118,2]
[339393396,1727559032007,-251.35461498,0.000118,2]
[339393397,1727559032019,-83.82301883,0.000118,2]
[339393398,1727559032030,-166.01,0.00011838,2]
[339393399,1727559032041,-400.0,0.00011868,2]
[339393400,1727559032052,-208.47,0.00011876,2]
[339393401,1727559032062,-250.0,0.00011898,2]
[339393402,1727559032071,-150.0,0.0001192,2]
[339393403,1727559032080,-500.0,0.00011921,2]
[339393404,1727559032089,-500.0,0.00011921,2]
[339393405,1727559032098,-500.0,0.00011921,2]
[339393406,1727559032107,-500.0,0.00011921,2]
[339393407,1727559032116,-500.0,0.00011921,2]
[339393408,1727559032126,-500.0,0.00011921,2]
[339393409,1727559032135,-500.0,0.00011921,2]
[339393410,1727559032144,-500.0,0.00011921,2]
[339393411,1727559032153,-500.0,0.00011921,2]
[339393412,1727559032162,-264.18,0.00011921,2]
[339393413,1727559032172,-500.0,0.00011921,2]
[339393414,1727559032181,-500.0,0.00011921,2]
[339393415,1727559032190,-500.0,0.00011921,2]
[339393416,1727559032199,-500.0,0.00011921,2]
[339393417,1727559032208,-500.0,0.00011921,2]
[339393418,1727559032218,-433.88,0.00011921,2]
[339393419,1727559032228,-150.8,0.0001199,2]
[339393420,1727559032239,-331.9,0.00012152,2]
[339393422,1727559032250,-233.629411,0.00012454,2]
[339393423,1727559032260,-233.629411,0.0001261,2]
[339393424,1727559032270,-2836.3807,0.00012622,2]
[339393425,1727559032284,-1017.99823706,0.00012642,2]
[339393426,1727559032293,-17650.25189746,0.00012657,2]
[339393427,1727559032304,-26710.94890254,0.00012657,2]
[339393428,1727559032314,-850.9456,0.00012666,2]
[339393430,1727559032323,-233.629411,0.00012766,2]
[339393431,1727559032331,-55186.77695646,0.0001278,2]
[339393432,1727559032343,-6959.30203298,0.0001278,2]
[339393434,1727559032354,-19047.66033465,0.0001278,2]
[339393436,1727559032366,-366.4982168,0.0001279,2]
[339393437,1727559032376,-150.0,0.00012795,2]
[339393438,1727559032386,-500.0,0.00012797,2]
[339393439,1727559032396,-184.41415678,0.00012799,2]
[339393440,1727559032406,-172.71481386,0.000128,2]
[339393441,1727559032415,-183.68050898,0.000128,2]
[339393442,1727559032425,-363.143,0.0001285,2]
[339393443,1727559032436,-183.68050897,0.0001285,2]
[339393444,1727559032447,-1262.736,0.00012866,2]
[339393445,1727559032456,-152.85,0.0001289,2]
[339393446,1727559032465,-186.67744967,0.0001289,2]
[339393447,1727559032476,-152.85,0.0001289,2]
[339393448,1727559032486,-152.85,0.0001289,2]
[339393449,1727559032495,-152.85,0.0001289,2]
[339393450,1727559032505,-152.85,0.0001289,2]
[339393451,1727559032515,-152.85,0.0001289,2]
[339393452,1727559032524,-152.85,0.0001289,2]
[339393453,1727559032533,-152.85,0.0001289,2]
[339393454,1727559032543,-152.85,0.0001289,2]
[339393455,1727559032553,-152.85,0.0001289,2]
[339393456,1727559032562,-152.85,0.0001289,2]
[339393457,1727559032571,-152.85,0.0001289,2]
[339393458,1727559032581,-152.85,0.0001289,2]
[339393459,1727559032590,-152.85,0.0001289,2]
[339393460,1727559032600,-152.85,0.0001289,2]
[339393461,1727559032610,-152.85,0.0001289,2]
[339393462,1727559032619,-152.85,0.0001289,2]
[339393463,1727559032629,-152.85,0.0001289,2]
[339393464,1727559032639,-152.85,0.0001289,2]
[339393465,1727559032650,-152.85,0.0001289,2]
[339393466,1727559032662,-152.85,0.0001289,2]
[339393467,1727559032670,-152.85,0.0001289,2]
[339393468,1727559032681,-186.67744967,0.0001289,2]
[339393469,1727559032691,-14909.9141016,0.00012897,2]
[339393470,1727559032700,-79377.41452945,0.00012899,2]
[339393471,1727559032837,-10778.66962938,0.00012899,2]
[339393472,1727559032849,-894.38164469,0.00012899,2]
[339393473,1727559032859,-741.8811006,0.00012899,2]
[339393474,1727559032871,-3094.08309588,0.00012899,2]
[339393475,1727559032880,-445.4460074,0.00012899,2]
[339393476,1727559032889,-1969.60878219,0.00012899,2]
[339393477,1727559032901,-3547.89675971,0.00012899,2]
[339393478,1727559032912,-844.4503927,0.00012899,2]
[339393479,1727559032923,-381.0441807,0.00012899,2]
[339393480,1727559032932,-500.0,0.00012899,2]
[339393481,1727559032942,-291.92,0.00012899,2]
[339393482,1727559032952,-253.8108628,0.00012899,2]
[339393483,1727559032961,-1750.3867608,0.00012899,2]
[339393484,1727559032970,-1498.43314904,0.00012899,2]
[339393485,1727559032982,-637.70410917,0.00012899,2]
[339393486,1727559032992,-1367.57781629,0.00012899,2]
[339393487,1727559033003,-478.31588386,0.00012899,2]
[339393488,1727559033018,-1299.333284,0.00012899,2]
[339393489,1727559033029,-5186.23143571,0.00012899,2]
[339393490,1727559033041,-4146.70725703,0.00012899,2]
[339393491,1727559033051,-500.31482232,0.00012899,2]
[339393492,1727559033061,-500.0,0.00012899,2]
[339393493,1727559033071,-291.26479346,0.00012899,2]
[339393494,1727559033089,-208.73520654,0.00012899,2]
[339393495,1727559033098,-500.0,0.00012899,2]
[339393496,1727559033108,-75.60830432,0.00012899,2]
[339393497,1727559033119,-424.39169568,0.00012899,2]
[339393498,1727559033129,-500.0,0.00012899,2]
[339393499,1727559033138,-500.0,0.00012899,2]
[339393500,1727559033148,-500.0,0.00012899,2]
[339393501,1727559033158,-500.0,0.00012899,2]
[339393502,1727559033167,-500.0,0.00012899,2]
[339393503,1727559033177,-500.0,0.00012899,2]
[339393504,1727559033186,-500.0,0.00012899,2]
[339393505,1727559033195,-477.65991973,0.00012899,2]
[339393506,1727559033209,-120.01455732,0.000129,2]
[339393507,1727559033220,-459.98544268,0.000129,2]
[339393508,1727559033230,-7935.71689107,0.000129,2]
[339393514,1727559038023,-531.06930366,0.00012799,2]
[339393515,1727559038034,-1968.93069634,0.00012799,2]
[339393516,1727559038043,-288.44464696,0.000128,2]
[339393517,1727559038052,-366.49821679,0.00012802,2]
[339393518,1727559038062,-2706.92643991,0.000129,2]
[339393519,1727559038091,-11520.88776301,0.000129,2]
[339393520,1727559038103,-918.803945,0.000129,2]
[339393521,1727559038114,-6981.19796048,0.000129,2]